fUSD/lending_fUSD_20250916
["ID","MTS","AMOUNT","RATE_DAILY","PERIOD"]
[385819333,1758055938600,-491.06,0.0003315,6]
[385819334,1758055938609,-643.54,0.0003315,6]
[385819335,1758055938619,-531.4,0.0003315,6]
[385819336,1758055938629,-716.44,0.0003315,6]
[385819337,1758055938640,-441.09,0.0003315,6]
[385819338,1758055938650,-498.56,0.0003315,6]
[385819339,1758055938660,-400.0,0.0003315,6]
[385819340,1758055938670,-692.32,0.0003315,6]
[385819341,1758055938680,-534.57719369,0.0003315,6]
[385819342,1758055938690,-3193.35,0.0003315,6]
[385819343,1758055938700,-508.03327826,0.0003315,6]
[385819344,1758055938710,-197.7088243,0.0003315,6]
[385819345,1758055938720,-559.39,0.0003315,6]
[385819346,1758055938730,-994.07,0.0003315,6]
[385819347,1758055938740,-430.31,0.0003315,6]
[385819348,1758055938749,-412.75,0.0003315,6]
[385819349,1758055938759,-414.15,0.0003315,6]
[385819350,1758055938769,-400.0,0.0003315,6]
[385819351,1758055938779,-400.0,0.0003315,6]
[385819352,1758055938789,-739.18,0.0003315,6]
[385819353,1758055938799,-512.42587471,0.0003315,6]
[385819354,1758055938810,-400.0,0.0003315,6]
[385819355,1758055938820,-400.0,0.0003315,6]
[385819356,1758055938831,-1559.48,0.0003315,6]
[385819357,1758055938841,-400.0,0.0003315,6]
[385819358,1758055938850,-400.0,0.0003315,6]
[385819359,1758055938861,-400.0,0.0003315,6]
[385819360,1758055938870,-542.77,0.0003315,6]
[385819361,1758055938881,-400.0,0.0003315,6]
[385819362,1758055938891,-301.47913675,0.0003315,6]
[385819363,1758055938901,-236.0,0.0003315,2]
[385819364,1758055938911,-582.39,0.0003315,6]
[385819365,1758055938921,-479.79,0.0003315,6]
[385819366,1758055938930,-400.0,0.0003315,6]
[385819367,1758055938940,-532.53,0.0003315,6]
[385819368,1758055938951,-493.85538805,0.0003315,6]
[385819369,1758055938961,-619.12,0.0003315,6]
[385819370,1758055938971,-3974.25,0.0003315,6]
[385819371,1758055938984,-441.55,0.0003315,6]
[385819372,1758055938994,-563.92,0.0003315,6]
[385819373,1758055939003,-400.0,0.0003315,6]
[385819374,1758055939014,-400.0,0.0003315,6]
[385819375,1758055939023,-548.54,0.0003315,6]
[385819376,1758055939033,-421.81,0.0003315,6]
[385819377,1758055939043,-400.0,0.0003315,6]
[385819378,1758055939053,-400.0,0.0003315,6]
[385819379,1758055939063,-518.36,0.0003315,6]
[385819380,1758055939073,-400.0,0.0003315,6]
[385819381,1758055939083,-510.5,0.0003315,6]
[385819382,1758055939093,-400.0,0.0003315,6]
[385819383,1758055939103,-701.31,0.0003315,6]
[385819384,1758055939113,-400.0,0.0003315,6]
[385819385,1758055939122,-400.0,0.0003315,6]
[385819386,1758055939133,-400.0,0.0003315,6]
[385819387,1758055939143,-415.13,0.0003315,6]
[385819388,1758055939153,-400.0,0.0003315,6]
[385819389,1758055939162,-636.08,0.0003315,6]
[385819390,1758055939173,-509.49,0.0003315,6]
[385819391,1758055939183,-501.58,0.0003315,6]
[385819392,1758055939193,-400.0,0.0003315,6]
[385819393,1758055939203,-400.0,0.0003315,6]
[385819394,1758055939213,-400.0,0.0003315,6]
[385819395,1758055939223,-1169.89,0.0003315,6]
[385819396,1758055939233,-420.32,0.0003315,6]
[385819397,1758055939243,-400.0,0.0003315,6]
[385819398,1758055939253,-475.75829087,0.0003315,6]
[385819399,1758055939263,-400.0,0.0003315,6]
[385819400,1758055939274,-515.27,0.0003315,6]
[385819401,1758055939284,-400.0,0.0003315,6]
[385819402,1758055939295,-625.17,0.0003315,6]
[385819403,1758055939503,-439.62,0.0003315,6]
[385819404,1758055939514,-259.17202252,0.0003315,6]
[385819405,1758055939524,-400.0,0.0003315,6]
[385819406,1758055939534,-511.44,0.0003315,6]
[385819407,1758055939543,-735.9,0.0003315,6]
[385819408,1758055939553,-1007.96,0.0003315,6]
[385819409,1758055939563,-400.0,0.0003315,6]
[385819410,1758055939572,-400.0,0.0003315,6]
[385819411,1758055939582,-457.27,0.0003315,6]
[385819412,1758055939591,-468.84,0.0003315,6]
[385819413,1758055939601,-539.99,0.0003315,6]
[385819414,1758055939611,-592.52,0.0003315,6]
[385819415,1758055939621,-414.16,0.0003315,6]
[385819416,1758055939631,-431.48,0.0003315,6]
[385819417,1758055939640,-400.0,0.0003315,6]
[385819418,1758055939650,-459.27,0.0003315,6]
[385819419,1758055939659,-952.83,0.0003315,6]
[385819420,1758055939669,-714.98,0.0003315,6]
[385819421,1758055939678,-946.11,0.0003315,6]
[385819422,1758055939688,-502.49,0.0003315,6]
[385819423,1758055939698,-2413.87,0.0003315,6]
[385819424,1758055939707,-525.48,0.0003315,6]
[385819425,1758055939717,-528.5,0.0003315,6]
[385819426,1758055939727,-400.0,0.0003315,6]
[385819427,1758055939737,-485.03,0.0003315,6]
[385819428,1758055939747,-499.88,0.0003315,6]
[385819429,1758055939757,-634.51,0.0003315,6]
[385819430,1758055939767,-300.0,0.0003315,6]
[385819431,1758055939776,-632.16,0.0003315,6]
[385819432,1758055939786,-400.0,0.0003315,6]
[385819433,1758055939796,-885.28,0.0003315,6]
[385819434,1758055939806,-400.0,0.0003315,6]
[385819435,1758055939815,-472.66,0.0003315,6]
[385819436,1758055939824,-458.62,0.0003315,6]
[385819437,1758055939834,-400.0,0.0003315,6]
[385819438,1758055939843,-432.05,0.0003315,6]
[385819439,1758055939852,-989.12,0.0003315,6]
[385819440,1758055939862,-566.3,0.0003315,6]
[385819441,1758055939872,-403.92,0.0003315,6]
[385819442,1758055939881,-1276.01,0.0003315,6]
[385819443,1758055939891,-400.0,0.0003315,6]
[385819444,1758055939900,-400.0,0.0003315,6]
[385819445,1758055939910,-418.98,0.0003315,6]
[385819446,1758055939920,-400.0,0.0003315,6]
[385819447,1758055939929,-2326.43,0.0003315,6]
[385819448,1758055939939,-400.0,0.0003315,6]
[385819449,1758055939948,-400.0,0.0003315,6]
[385819450,1758055939957,-378.65215102,0.0003315,6]
[385819451,1758055939967,-502.69269735,0.0003315,6]
[385819452,1758055939976,-1109.01,0.0003315,6]
[385819453,1758055939986,-538.32,0.0003315,6]
[385819454,1758055939995,-1132.05,0.0003315,6]
[385819455,1758055940005,-579.99,0.0003315,6]
[385819456,1758055940015,-867.79,0.0003315,6]
[385819457,1758055940026,-449.54,0.0003315,6]
[385819458,1758055940035,-1010.91,0.0003315,6]
[385819459,1758055940045,-662.74,0.0003315,6]
[385819460,1758055940054,-533.65,0.0003315,6]
[385819461,1758055940064,-400.0,0.0003315,6]
[385819462,1758055940074,-400.0,0.0003315,6]
[385819463,1758055940084,-400.0,0.0003315,6]
[385819464,1758055940094,-1125.68,0.0003315,6]
[385819465,1758055940104,-539.15,0.0003315,6]
[385819466,1758055940114,-648.06,0.0003315,6]
[385819467,1758055940124,-400.0,0.0003315,6]
[385819468,1758055940134,-493.22,0.0003315,6]
[385819469,1758055940143,-589.24,0.0003315,6]
[385819470,1758055940152,-624.32,0.0003315,6]
[385819471,1758055940162,-798.32,0.0003315,6]
[385819472,1758055940172,-1260.04,0.0003315,6]
[385819473,1758055940182,-623.88,0.0003315,6]
[385819474,1758055940192,-540.9,0.0003315,6]
[385819475,1758055940201,-400.0,0.0003315,6]
[385819476,1758055940211,-576.24,0.0003315,6]
[385819477,1758055940223,-483.13,0.0003315,6]
[385819478,1758055940233,-619.08,0.0003315,6]
[385819479,1758055940242,-1873.62,0.0003315,6]
[385819480,1758055940252,-483.51,0.0003315,6]
[385819481,1758055940262,-832.27,0.0003315,6]
[385819482,1758055940272,-400.0,0.0003315,6]
[385819483,1758055940282,-400.0,0.0003315,6]
[385819484,1758055940293,-3866.02,0.0003315,6]
[385819485,1758055940304,-400.0,0.0003315,6]
[385819486,1758055940313,-684.05,0.0003315,6]
[385819487,1758055940323,-400.0,0.0003315,6]
[385819488,1758055940334,-1080.44,0.0003315,6]
[385819489,1758055940345,-400.0,0.0003315,6]
[385819490,1758055940361,-400.0,0.0003315,6]
[385819491,1758055940372,-603.43,0.0003315,6]
[385819492,1758055940382,-674.22,0.0003315,6]
[385819493,1758055940391,-881.46,0.0003315,6]
[385819494,1758055940401,-539.06,0.0003315,6]
[385819495,1758055940411,-416.64,0.0003315,6]
[385819496,1758055940420,-456.38,0.0003315,6]
[385819497,1758055940431,-500.02,0.0003315,6]
[385819498,1758055940442,-594.86,0.0003315,6]
[385819499,1758055940451,-400.0,0.0003315,6]
[385819500,1758055940461,-4462.76,0.0003315,6]
[385819501,1758055940470,-416.47,0.0003315,6]
[385819502,1758055940480,-396.43691739,0.0003315,6]
[385819503,1758055940489,-820.55,0.0003315,6]
[385819504,1758055940498,-691.5,0.0003315,6]
[385819505,1758055940508,-863.73,0.0003315,6]
[385819506,1758055940517,-934.84,0.0003315,6]
[385819507,1758055940527,-400.0,0.0003315,6]
[385819508,1758055940536,-400.0,0.0003315,6]
[385819509,1758055940546,-423.92,0.0003315,6]
[385819510,1758055940555,-400.0,0.0003315,6]
[385819511,1758055940565,-600.6,0.0003315,6]
[385819512,1758055940574,-805.77,0.0003315,6]
[385819513,1758055940583,-400.0,0.0003315,6]
[385819514,1758055940592,-559.15,0.0003315,6]
[385819515,1758055940602,-1316.13,0.0003315,6]
[385819516,1758055940611,-1155.56,0.0003315,6]
[385819517,1758055940621,-910.36,0.0003315,6]
[385819518,1758055940630,-400.0,0.0003315,6]
[385819519,1758055940641,-655.36,0.0003315,6]
[385819520,1758055940651,-597.27,0.0003315,6]
[385819521,1758055940660,-1000.65,0.0003315,6]
[385819522,1758055940670,-400.0,0.0003315,6]
[385819523,1758055940679,-465.08,0.0003315,6]
[385819524,1758055940689,-1273.95,0.0003315,6]
[385819525,1758055940699,-471.4,0.0003315,6]
[385819526,1758055940709,-846.63,0.0003315,6]
[385819527,1758055940719,-400.0,0.0003315,6]
[385819528,1758055940729,-2311.18,0.0003315,6]
[385819529,1758055940738,-177.38472596,0.0003315,6]
[385819530,1758055940749,-14098.53,0.0003315,6]
[385819531,1758055940758,-560.78,0.0003315,6]
[385819532,1758055940767,-400.0,0.0003315,6]
[385819533,1758055940777,-400.0,0.0003315,6]
[385819534,1758055940786,-937.69,0.0003315,6]
[385819535,1758055940796,-503.05,0.0003315,6]
[385819536,1758055940808,-553.78,0.0003315,6]
[385819537,1758055940817,-400.0,0.0003315,6]
[385819538,1758055940827,-400.0,0.0003315,6]
[385819539,1758055940837,-567.68,0.0003315,6]
[385819540,1758055940847,-824.87,0.0003315,6]
[385819541,1758055940857,-400.0,0.0003315,6]
[385819542,1758055940867,-400.0,0.0003315,6]
[385819543,1758055940876,-2437.93,0.0003315,6]
[385819544,1758055940886,-526.12,0.0003315,6]
[385819545,1758055940895,-756.47,0.0003315,6]
[385819546,1758055940905,-400.0,0.0003315,6]
[385819547,1758055940915,-542.28,0.0003315,6]
[385819548,1758055940927,-967.74,0.0003315,6]
[385819549,1758055940939,-661.2,0.0003315,6]
[385819550,1758055940949,-780.22,0.0003315,6]
[385819551,1758055940958,-400.0,0.0003315,6]
[385819552,1758055940968,-934.86,0.0003315,6]
[385819553,1758055940977,-400.0,0.0003315,6]
[385819554,1758055940989,-3476.13,0.0003315,6]
[385819555,1758055940998,-1084.85,0.0003315,6]
[385819556,1758055941008,-471.94,0.0003315,6]
[385819557,1758055941017,-1066.11,0.0003315,6]
[385819558,1758055941026,-933.57,0.0003315,6]
[385819559,1758055941036,-882.36,0.0003315,6]
[385819560,1758055941046,-400.0,0.0003315,6]
[385819561,1758055941056,-593.88,0.0003315,6]
[385819562,1758055941066,-1071.43,0.0003315,6]
[385819563,1758055941075,-400.0,0.0003315,6]
[385819564,1758055941086,-748.66,0.0003315,6]
[385819565,1758055941096,-400.0,0.0003315,6]
[385819566,1758055941105,-451.23,0.0003315,6]
[385819567,1758055941115,-493.33,0.0003315,6]
[385819568,1758055941125,-669.04,0.0003315,6]
[385819569,1758055941134,-560.66,0.0003315,6]
[385819570,1758055941144,-400.0,0.0003315,6]
[385819571,1758055941154,-673.15,0.0003315,6]
[385819572,1758055941163,-735.64,0.0003315,6]
[385819573,1758055941172,-400.0,0.0003315,6]
[385819574,1758055941182,-400.0,0.0003315,6]
[385819575,1758055941191,-400.0,0.0003315,6]
[385819576,1758055941200,-400.0,0.0003315,6]
[385819577,1758055941210,-468.22,0.0003315,6]
[385819578,1758055941219,-400.0,0.0003315,6]
[385819579,1758055941228,-1125.3,0.0003315,6]
[385819580,1758055941237,-909.09,0.0003315,6]
[385819581,1758055941246,-853.45,0.0003315,6]
[385819582,1758055941256,-352.24466031,0.0003315,6]
[385819583,1758055941783,-200.17533969,0.0003315,6]
[385819584,1758055941795,-527.01,0.0003315,6]
[385819585,1758055941805,-60.02571944,0.0003315,6]
[385819586,1758055941816,-341.86428056,0.0003315,6]
[385819587,1758055941827,-58.13571944,0.0003315,6]
[385819588,1758055941839,-385.38428056,0.0003315,6]
[385819589,1758055941849,-400.0,0.0003315,6]
[385819590,1758055941859,-852.14,0.0003315,6]
[385819591,1758055941870,-282.47571944,0.0003315,6]
[385819592,1758055941892,-228.763832,0.0003,7]
[385819593,1758055941902,-400.0,0.0003178,6]
[385819594,1758055941912,-196.78428056,0.0003315,6]
[385819595,1758055941922,-532.39328744,0.0003315,6]
[385819596,1758055942015,-258.50354044,0.0003315,6]
[385819597,1758055942027,-385.31317212,0.0003315,6]
[385819598,1758055942036,-400.0,0.0003315,6]
[385819599,1758055942045,-400.0,0.0003315,6]
[385819600,1758055942054,-400.0,0.0003315,6]
[385819601,1758055942064,-995.2,0.0003315,6]
[385819602,1758055942073,-1339.24,0.0003315,6]
[385819603,1758055942082,-157.74682788,0.0003315,6]
[385819604,1758055942097,-460.195001,0.00030958,6]
[385819605,1758055942108,-242.664999,0.00030958,6]
[385819606,1758055942117,-336.95317212,0.0003315,6]
[385819607,1758055942126,-4050.11261482,0.0003315,6]
[385819608,1758055942138,-315.70738518,0.0003315,6]
[385819609,1758055942147,-590.86,0.0003315,6]
[385819610,1758055942157,-400.0,0.0003315,6]
[385819611,1758055942166,-588.68,0.0003315,6]
[385819612,1758055942175,-64.21631866,0.0003315,6]
[385819613,1758055942186,-335.78368134,0.0003315,6]
[385819614,1758055942195,-400.0,0.0003315,6]
[385819615,1758055942204,-22.43662352,0.0003315,6]
[385819616,1758055944413,-99.53223119,0.0003315,6]
[385819617,1758055944425,-278.03114529,0.0003315,6]
[385819618,1758055944437,-1092.66,0.0003315,6]
[385819619,1758055944448,-177.23345251,0.0003315,6]
[385819620,1758055944458,-400.0,0.0003315,6]
[385819621,1758055944467,-965.27,0.0003315,6]
[385819622,1758055944477,-915.59,0.0003315,6]
[385819623,1758055944487,-693.26,0.0003315,6]
[385819624,1758055944497,-400.0,0.0003315,6]
[385819625,1758055944507,-400.0,0.0003315,6]
[385819626,1758055944517,-724.66,0.0003315,6]
[385819627,1758055944526,-873.33,0.0003315,6]
[385819628,1758055944536,-400.0,0.0003315,6]
[385819629,1758055944545,-659.67,0.0003315,6]
[385819630,1758055944555,-328.25530621,0.0003315,6]
[385819631,1758055944982,-1482.5189099,0.00029119,2]
[385819632,1758055944994,-1163.30199,0.00029119,2]
[385819633,1758055945030,-866.68585548,0.00029119,2]
[385819634,1758055945042,-11502.99324462,0.00029119,2]
[385819635,1758055945052,-2500.0,0.00029546,2]
[385819636,1758055945065,-228.763832,0.00029746,7]
[385819637,1758055945074,-228.763832,0.00029746,7]
[385819638,1758055945084,-228.763832,0.00029801,7]
[385819639,1758055945093,-228.763832,0.00029801,7]
[385819640,1758055945103,-228.763832,0.0003,7]
[385819641,1758055945113,-228.763832,0.0003,7]
[385819642,1758055945122,-228.763832,0.00030135,7]
[385819643,1758055945132,-228.763832,0.00030135,7]
[385819644,1758055945142,-400.0,0.00030136,6]
[385819645,1758055945152,-228.763832,0.00030136,7]
[385819646,1758055945162,-228.763832,0.00030136,7]
[385819647,1758055945172,-400.0,0.0003041,6]
[385819648,1758055945182,-400.0,0.00030684,6]
[385819649,1758055945192,-440.7,0.00030684,6]
[385819650,1758055945202,-293.91379406,0.00030958,6]
[385819651,1758055945587,-228.763832,0.00030135,7]
[385819652,1758055945598,-400.0,0.00030136,6]
[385819653,1758055945608,-228.763831,0.00030136,7]
[385819654,1758055945618,-176.748675,0.00030136,6]
[385819655,1758055945628,-106.08620594,0.00030958,6]
[385819656,1758055945639,-212.09114416,0.00030958,6]
[385819657,1758055945953,-228.60885584,0.00030958,6]
[385819658,1758055945963,-702.86,0.00031232,6]
[385819659,1758055945973,-400.0,0.00031232,6]
[385819660,1758055945983,-440.7,0.00031232,6]
[385819661,1758055945993,-400.0,0.00031506,6]
[385819662,1758055946002,-440.7,0.00031506,6]
[385819663,1758055946011,-400.0,0.0003178,6]
[385819664,1758055946021,-440.7,0.0003178,6]
[385819665,1758055946030,-400.0,0.00032054,6]
[385819666,1758055946040,-400.0,0.00032054,6]
[385819667,1758055946049,-440.7,0.00032054,6]
[385819668,1758055946059,-400.0,0.00032328,6]
[385819669,1758055946069,-400.0,0.00032328,6]
[385819670,1758055946078,-440.7,0.00032328,6]
[385819671,1758055946088,-1686.16,0.00032602,6]
[385819672,1758055946097,-400.0,0.00032602,6]
[385819673,1758055946107,-400.0,0.00032602,6]
[385819674,1758055946116,-440.7,0.00032602,6]
[385819675,1758055946126,-1686.16,0.00032876,6]
[385819676,1758055946135,-400.0,0.00032876,6]
[385819677,1758055946144,-400.0,0.00032876,6]
[385819678,1758055946153,-440.7,0.00032876,6]
[385819679,1758055946162,-71.74469379,0.0003315,6]
[385819680,1758055946172,-463.42,0.0003315,6]
[385819681,1758055946181,-385.10519671,0.0003315,6]
[385819682,1758055946190,-611.4,0.0003315,6]
[385819683,1758055946200,-1187.49,0.0003315,6]
[385819684,1758055946210,-400.0,0.0003315,6]
[385819685,1758055946220,-825.95,0.0003315,6]
[385819686,1758055946229,-400.0,0.0003315,6]
[385819687,1758055946238,-752.32,0.0003315,6]
[385819688,1758055946247,-2051.76,0.0003315,6]
[385819689,1758055946257,-400.0,0.0003315,6]
[385819690,1758055946266,-449.27,0.0003315,6]
[385819691,1758055946276,-2057.54,0.0003315,6]
[385819692,1758055946286,-2551.67,0.0003315,6]
[385819693,1758055946297,-400.0,0.0003315,6]
[385819694,1758055946307,-633.85,0.0003315,6]
[385819695,1758055946319,-400.0,0.0003315,6]
[385819696,1758055946329,-297.85307558,0.0003315,6]
[385819697,1758055946338,-400.0,0.0003315,6]
[385819698,1758055946347,-457.48,0.0003315,6]
[385819699,1758055946360,-1149.2,0.0003315,6]
[385819700,1758055946370,-809.23,0.0003315,6]
[385819701,1758055946379,-400.0,0.0003315,6]
[385819702,1758055946389,-400.0,0.0003315,6]
[385819703,1758055946399,-406.64,0.0003315,6]
[385819704,1758055946409,-669.07,0.0003315,6]
[385819705,1758055946418,-400.0,0.0003315,6]
[385819706,1758055946428,-757.93,0.0003315,6]
[385819707,1758055946438,-435.49,0.0003315,6]
[385819708,1758055946448,-678.31,0.0003315,6]
[385819709,1758055946457,-544.7,0.0003315,6]
[385819710,1758055946467,-192.46429826,0.0003315,6]
[385819711,1758055946477,-755.72,0.0003315,6]
[385819712,1758055946487,-244.18315717,0.0003315,6]
[385819713,1758055946496,-651.62,0.0003315,6]
[385819714,1758055946506,-1264.24,0.0003315,6]
[385819715,1758055946515,-2602.41,0.0003315,6]
[385819716,1758055946525,-400.0,0.0003315,6]
[385819717,1758055946535,-400.0,0.0003315,6]
[385819718,1758055946544,-4091.94,0.0003315,6]
[385819719,1758055946553,-475.44,0.0003315,6]
[385819720,1758055946563,-400.0,0.0003315,6]
[385819721,1758055946573,-400.0,0.0003315,6]
[385819722,1758055946583,-400.0,0.0003315,6]
[385819723,1758055946592,-405.59,0.0003315,6]
[385819724,1758055946601,-400.0,0.0003315,6]
[385819725,1758055946610,-405.86,0.0003315,6]
[385819726,1758055946619,-1940.41,0.0003315,6]
[385819727,1758055946629,-2380.39,0.0003315,6]
[385819728,1758055946639,-503.64,0.0003315,6]
[385819729,1758055946649,-623.1,0.0003315,6]
[385819730,1758055946658,-400.0,0.0003315,6]
[385819731,1758055946668,-700.18,0.0003315,6]
[385819732,1758055946678,-852.09,0.0003315,6]
[385819733,1758055946687,-464.58,0.0003315,6]
[385819734,1758055946697,-350.26346669,0.0003315,6]
[385819735,1758055946707,-794.77,0.0003315,6]
[385819736,1758055946717,-400.0,0.0003315,6]
[385819737,1758055946727,-400.0,0.0003315,6]
[385819738,1758055946736,-742.26,0.0003315,6]
[385819739,1758055946746,-885.24,0.0003315,6]
[385819740,1758055946756,-400.0,0.0003315,6]
[385819741,1758055946765,-679.38,0.0003315,6]
[385819742,1758055946775,-472.34,0.0003315,6]
[385819743,1758055946785,-1364.36698045,0.0003315,6]
[385819744,1758055946804,-1350.15301955,0.0003315,6]
[385819745,1758055946814,-419.78,0.0003315,6]
[385819746,1758055946824,-1058.59817782,0.0003315,6]
[385819747,1758055946839,-152.67182218,0.0003315,6]
[385819748,1758055946849,-400.0,0.0003315,6]
[385819749,1758055946859,-400.0,0.0003315,6]
[385819750,1758055946868,-456.67,0.0003315,6]
[385819751,1758055946878,-400.0,0.0003315,6]
[385819752,1758055946887,-1686.16,0.0003315,6]
[385819753,1758055946897,-400.0,0.0003315,6]
[385819754,1758055946906,-400.0,0.0003315,6]
[385819755,1758055946915,-440.7,0.0003315,6]
[385819756,1758055946925,-1000.0,0.00033153,7]
[385819757,1758055946934,-1000.0,0.0003316,7]
[385819758,1758055946943,-500.0,0.00033193,7]
[385819759,1758055946953,-1181.81893622,0.00033197,2]
[385819760,1758055946964,-1473.62814224,0.00033197,2]
[385819761,1758055946974,-179.0,0.00033226,30]
[385819762,1758055946987,-500.0,0.00033242,7]
[385819763,1758055946998,-1800.0,0.00033277,7]
[385819764,1758055947008,-2168.46465113,0.00033287,30]
[385819765,1758055947094,-941.70106887,0.00033287,30]
[385819766,1758055947104,-200.28635241,0.00033293,2]
[385819767,1758055947113,-4388.01257872,0.000333,14]
[385819768,1758055947124,-452.46059757,0.000333,14]
[385819769,1758055950524,2000.0,0.0002219,120]
[385819770,1758055950591,2000.0,0.00024645,120]
[385819771,1758055950641,2000.0,0.00027447,120]
[385819772,1758055950675,2000.0,0.00027447,120]
[385819773,1758055950741,2000.0,0.00027447,120]
[385819791,1758056706178,160.15,0.00013058,2]
[385819792,1758056706875,160.15,0.00015234,2]
[385819793,1758056706925,160.15,0.0001741,2]
[385819794,1758056707006,160.15,0.00019587,2]
[385819810,1758057032290,-195.0,0.00020786,2]
[385819812,1758057032803,-250.0,0.00020789,2]
[385819814,1758057032812,-151.0,0.00020794,2]
[385819815,1758057032821,-195.0,0.00020794,2]
[385819816,1758057032831,-151.0,0.000208,2]
[385819817,1758057032840,-304.48272318,0.000208,2]
[385819818,1758057032849,-151.0,0.00020802,2]
[385819820,1758057032858,-151.0,0.00020804,2]
[385819822,1758057032868,-160.15,0.00021763,2]
[385819824,1758057032878,-850.0,0.00021798,2]
[385819826,1758057032891,-300.0,0.00021798,2]
[385819828,1758057032900,-300.0,0.00021798,2]
[385819830,1758057032909,-300.0,0.00021798,2]
[385819832,1758057032919,-1200.0,0.00021798,2]
[385819834,1758057032930,-500.0,0.00021799,2]
[385819836,1758057032939,-500.0,0.00021799,2]
[385819838,1758057032948,-500.0,0.00021799,2]
[385819840,1758057032957,-500.0,0.00021799,2]
[385819842,1758057032967,-500.0,0.00021799,2]
[385819844,1758057032977,-500.0,0.00021799,2]
[385819846,1758057032986,-500.0,0.00021799,2]
[385819848,1758057032995,-166.79030793,0.00021799,2]
[385819850,1758057033004,-348.43254699,0.00021799,2]
[385819851,1758057033013,-500.0,0.00021799,2]
[385819853,1758057033022,-500.0,0.00021799,2]
[385819855,1758057033032,-208.13729327,0.00021799,2]
[385819858,1758057033044,-291.86270673,0.00021799,2]
[385819860,1758057033054,-500.0,0.00021799,2]
[385819862,1758057033063,-172.20164222,0.00021799,2]
[385819864,1758057033079,-327.79835778,0.00021799,2]
[385819866,1758057033089,-500.0,0.00021799,2]
[385819868,1758057033099,-154.37285012,0.00021799,2]
[385819870,1758057033113,-345.62714988,0.00021799,2]
[385819871,1758057033123,-500.0,0.00021799,2]
[385819872,1758057033133,-500.0,0.00021799,2]
[385819873,1758057033142,-525.35566288,0.00021799,2]
[385819874,1758057033152,-500.0,0.00021799,2]
[385819875,1758057033162,-500.0,0.00021799,2]
[385819876,1758057033171,-500.0,0.00021799,2]
[385819877,1758057033181,-500.0,0.00021799,2]
[385819878,1758057033191,-500.0,0.00021799,2]
[385819879,1758057033200,-500.0,0.00021799,2]
[385819880,1758057033210,-500.0,0.00021799,2]
[385819881,1758057033220,-515.0,0.00022132,2]
[385819882,1758057033230,-2496.94574356,0.00022133,2]
[385819883,1758057033241,-18678.48629104,0.00022133,2]
[385819884,1758057033251,-364.77490362,0.00022137,2]
[385819885,1758057033260,-156.57534955,0.00022267,2]
[385819886,1758057033269,-500.0,0.000223,2]
[385819887,1758057033279,-500.0,0.000223,2]
[385819888,1758057033288,-164.52477844,0.000223,2]
[385819889,1758057033298,-540.64900825,0.000223,2]
[385819890,1758057033307,-500.0,0.000223,2]
[385819891,1758057033317,-500.0,0.000228,2]
[385819892,1758057033326,-500.0,0.000228,2]